bitfinex/quotes_SOLUSD_20251002
["timestamp","ask_amount","ask_price","bid_price","bid_amount"]
[1759414011766,22.08588581,226.39,226.25,0.8]
[1759414011767,2.67734879,226.3,226.25,0.8]
[1759414011981,34.61734879,226.29,226.26,0.7]
[1759414012275,34.61734879,226.29,226.27,0.7]
[1759414012456,31.94,226.29,226.27,0.7]
[1759414012657,31.94,226.29,226.25,0.1]
[1759414012658,34.61734879,226.29,226.25,0.1]
[1759414012976,34.61734879,226.29,226.26,0.7]
[1759414013158,31.94,226.29,226.27,0.7]
[1759414013481,2.67734879,226.32,226.28,0.7]
[1759414013651,2.67734879,226.33,226.29,0.7]
[1759414013852,31.94,226.32,226.3,0.7]
[1759414014160,31.94,226.32,226.31,0.72]
[1759414014353,31.94,226.34,226.31,11.59647521]
[1759414014560,7.09488051,226.38,226.31,11.59647521]
[1759414014561,31.94,226.35,226.32,0.72]
[1759414014758,31.94,226.35,226.33,0.72]
[1759414015181,31.94,226.35,226.31,10.87647521]
[1759414015182,31.94,226.35,226.34,0.72]
[1759414015691,31.94,226.35,226.34,5.13813201]
[1759414016158,31.94,226.35,226.34,0.72]
[1759414017373,30.94,226.35,226.34,0.72]
[1759414018288,30.94,226.35,226.29,11.04767222]
[1759414018589,30.94,226.35,226.32,0.72]
[1759414018759,30.94,226.35,226.33,0.72]
[1759414018954,30.94,226.35,226.3,26.34267051]
[1759414018955,30.94,226.35,226.34,0.72]
[1759414019269,36.02793682,226.35,226.28,10.87647521]
[1759414019466,2.67734879,226.33,226.28,10.87647521]
[1759414019684,31.92,226.32,226.29,0.72]
[1759414019881,31.92,226.32,226.27,10.87647521]
[1759414020065,31.92,226.32,226.3,0.72]
[1759414020267,31.92,226.34,226.32,10.87647521]
[1759414020466,1.71746121,226.38,226.33,0.72]
[1759414020665,1.71746121,226.38,226.3,31.67647521]
[1759414020666,31.92,226.37,226.31,10.87647521]
[1759414020960,31.92,226.36,226.34,0.72]
[1759414021292,31.92,226.36,226.33,4.41832722]
[1759414021584,31.92,226.36,226.35,0.72]
[1759414021960,1.71746121,226.39,226.33,5.13832722]
[1759414022163,31.92,226.38,226.33,5.13832722]
[1759414022359,31.92,226.38,226.34,0.72]
[1759414022559,1.71746121,226.37,226.31,11.59647521]
[1759414023199,4.41774165,226.36,226.31,11.59647521]
[1759414023391,1.71746121,226.33,226.28,31.67647521]
[1759414023566,1.71746121,226.33,226.29,0.72]
[1759414023766,1.71746121,226.34,226.3,0.72]
[1759414024167,33.63746121,226.35,226.3,0.72]
[1759414024387,1.71746121,226.33,226.28,31.67647521]
[1759414024589,31.92,226.35,226.29,0.72]
[1759414024794,1.71746121,226.34,226.29,0.72]
[1759414024975,31.92,226.37,226.32,10.87647521]
[1759414025183,31.92,226.41,226.34,10.87647521]
[1759414025492,4.41578726,226.47,226.36,10.87647521]
[1759414025740,1.71746121,226.47,226.38,10.87647521]
[1759414025869,31.92,226.47,226.4,10.87647521]
[1759414026075,31.92,226.47,226.42,10.87647521]
[1759414026386,31.92,226.47,226.42,11.59647521]
[1759414026573,31.92,226.47,226.38,10.87647521]
[1759414026767,31.92,226.47,226.39,0.72]
[1759414027079,1.71746121,226.45,226.4,10.87647521]
[1759414027281,6.80344879,226.45,226.4,10.87647521]
[1759414027494,6.13326908,226.46,226.41,0.72]
[1759414027791,4.41580787,226.46,226.4,15.2934067]
[1759414027999,6.13326908,226.46,226.4,10.87647521]
[1759414028175,4.41580787,226.46,226.4,10.87647521]
[1759414028498,9.55405227,226.46,226.4,10.87647521]
[1759414029069,4.4682444,226.46,226.4,10.87647521]
[1759414029387,31.92,226.47,226.34,13.26758507]
[1759414029388,37.00563021,226.47,226.41,10.87647521]
[1759414029590,41.47387461,226.47,226.41,10.87647521]
[1759414029798,41.47387461,226.47,226.41,15.29324019]
[1759414029992,41.47387461,226.47,226.41,10.87647521]
[1759414030502,4.4682444,226.5,226.43,10.87647521]
[1759414030713,31.9,226.49,226.45,10.87647521]
[1759414030880,11.03050608,226.51,226.47,10.87647521]
[1759414031203,11.03050608,226.51,226.49,10.87647521]
[1759414031388,11.03050608,226.51,226.47,20.8]
[1759414031600,11.03050608,226.51,226.49,0.72]
[1759414031889,11.03050608,226.51,226.5,0.72]
[1759414032094,11.03050608,226.51,226.5,11.59647521]
[1759414032298,11.03050608,226.51,226.5,10.87647521]
[1759414032608,16.11537043,226.51,226.46,20.8]
[1759414032785,0.67,226.5,226.47,20.8]
[1759414032982,4.4682444,226.5,226.47,20.8]
[1759414033205,19.91359726,226.51,226.47,20.8]
[1759414033723,15.49875048,226.51,226.47,20.8]
[1759414034088,19.91359517,226.51,226.47,20.8]
[1759414034305,19.91359517,226.51,226.45,0.72]
[1759414034508,20.58359517,226.51,226.46,10.87647521]
[1759414034897,20.58359517,226.51,226.43,31.67647521]
[1759414034898,5.1382444,226.5,226.43,31.67647521]
[1759414035215,5.1382444,226.5,226.45,20.8]
[1759414035388,15.49875048,226.51,226.45,20.8]
[1759414035589,19.91367596,226.51,226.45,25.21583039]
[1759414035799,19.91367596,226.51,226.45,20.8]
[1759414036008,4.4682444,226.5,226.45,20.8]
[1759414036322,20.58367596,226.51,226.45,25.93595241]
[1759414036612,19.91367596,226.51,226.45,25.93595241]
[1759414036792,11.03050608,226.51,226.46,11.59647521]
[1759414036986,11.03050608,226.51,226.47,0.72]
[1759414037388,11.03050608,226.51,226.46,10.87647521]
[1759414037389,0.67,226.5,226.46,10.87647521]
[1759414037611,11.03050608,226.51,226.46,11.59647521]
[1759414037809,11.03050608,226.51,226.47,0.72]
[1759414037988,11.03050608,226.51,226.49,10.87647521]
[1759414038183,11.03050608,226.51,226.46,15.29225689]
[1759414038184,11.03050608,226.51,226.5,11.59647521]
[1759414038388,11.03050608,226.51,226.5,10.87647521]
[1759414039115,11.03050608,226.51,226.5,79.2]
[1759414039302,11.70050608,226.51,226.5,79.2]
[1759414039501,4.4682444,226.53,226.5,79.2]
[1759414039716,0.67,226.52,226.5,79.2]
[1759414039920,0.67,226.52,226.46,94.49224129]
[1759414040214,5.1382444,226.52,226.46,90.07647521]
[1759414040419,4.4682444,226.5,226.46,10.87647521]
[1759414040624,5.1382444,226.5,226.46,10.87647521]
[1759414040791,4.4682444,226.5,226.46,10.87647521]
[1759414040992,8.88267074,226.53,226.47,0.72]
[1759414041922,4.41442634,226.53,226.48,10.87647521]
[1759414042223,4.41442634,226.53,226.48,11.59647521]
[1759414042394,5.08442634,226.53,226.48,10.87647521]
[1759414042596,9.55267074,226.53,226.48,10.87647521]
[1759414043202,8.88267074,226.53,226.48,10.87647521]
[1759414043403,5.1882444,226.55,226.49,0.68]
[1759414043603,9.60234299,226.55,226.49,0.68]
[1759414043822,9.60234299,226.55,226.48,10.87647521]
[1759414044043,4.4682444,226.52,226.48,10.87647521]
[1759414044303,5.1482444,226.51,226.46,10.87647521]
[1759414044525,0.68,226.5,226.46,10.87647521]
[1759414044734,0.68,226.5,226.43,0.68]
[1759414044922,4.4682444,226.48,226.44,10.87647521]
[1759414045114,5.1482444,226.5,226.44,11.55647521]
[1759414045432,4.4682444,226.5,226.44,11.55647521]
[1759414045917,4.41520596,226.49,226.44,10.87647521]
[1759414046112,4.41520596,226.49,226.44,11.55647521]
[1759414046821,5.1482444,226.5,226.44,15.29259524]
[1759414047024,4.4682444,226.52,226.45,0.68]
[1759414047341,5.1482444,226.51,226.44,15.97259524]
[1759414047715,0.68,226.51,226.44,15.97259524]
[1759414048278,4.41501103,226.5,226.44,15.97259524]
[1759414048545,6.13022102,226.5,226.44,11.55647521]
[1759414048703,1.71520999,226.48,226.4,131.86]
[1759414048910,1.71520999,226.46,226.4,21.48]
[1759414049110,1.71520999,226.44,226.41,10.87647521]
[1759414049413,5.09501103,226.5,226.43,10.87647521]
[1759414049617,5.09501103,226.5,226.39,20.8]
[1759414049618,1.71520999,226.47,226.39,20.8]
[1759414049957,1.71520999,226.46,226.4,10.87647521]
[1759414050445,6.1310205,226.46,226.4,10.87647521]
[1759414051118,6.1310205,226.46,226.4,15.29338394]
[1759414051320,6.1310205,226.46,226.4,10.87647521]
[1759414051545,1.71520999,226.44,226.36,0.68]
[1759414051728,1.71520999,226.41,226.34,11.55647521]
[1759414051914,1.71520999,226.42,226.36,10.87647521]
[1759414052121,0.68,226.49,226.38,10.87647521]
[1759414052333,0.68,226.58,226.42,10.87647521]
[1759414052655,1.71520999,226.52,226.43,0.68]
[1759414052847,2.39520999,226.51,226.43,0.68]
[1759414053446,1.71520999,226.49,226.43,20.8]
[1759414053644,1.71520999,226.48,226.41,0.68]
[1759414053958,1.71520999,226.47,226.42,10.87647521]
[1759414054264,1.71520999,226.45,226.37,0.68]
[1759414054442,1.71520999,226.45,226.38,10.87647521]
[1759414055629,4.41618088,226.44,226.38,10.87647521]
[1759414055826,0.68,226.46,226.38,15.29375457]
[1759414056029,1.71520999,226.46,226.39,0.68]
[1759414056445,1.71520999,226.45,226.39,0.68]
[1759414057125,0.68,226.47,226.39,0.68]
[1759414057327,1.71520999,226.45,226.39,0.68]
[1759414058043,4.41618088,226.44,226.39,0.68]
[1759414058262,1.71520999,226.45,226.39,4.41708304]
[1759414058560,6.13120162,226.45,226.4,0.68]
[1759414058761,6.81120162,226.45,226.4,0.68]
[1759414058940,2.39520999,226.45,226.4,0.68]
[1759414059261,2.39520999,226.45,226.38,10.87647521]
[1759414059262,0.68,226.44,226.38,10.87647521]
[1759414059458,2.39520999,226.44,226.38,31.67647521]
[1759414059647,6.13121974,226.45,226.39,0.68]
[1759414060056,1.71520999,226.44,226.38,31.67647521]
[1759414060261,2.39520999,226.43,226.38,31.67647521]
[1759414060568,0.68,226.42,226.36,4.35006079]
[1759414060766,1.71520999,226.41,226.37,10.87647521]
[1759414060934,1.71520999,226.43,226.37,10.87647521]
[1759414061135,1.71520999,226.44,226.38,0.68]
[1759414061440,1.71520999,226.43,226.38,0.68]
[1759414061638,2.39520999,226.43,226.38,0.68]
[1759414061835,1.71520999,226.43,226.37,10.87647521]
[1759414062043,2.39520999,226.42,226.36,10.87647521]
[1759414062261,6.81180574,226.42,226.36,11.55647521]
[1759414062634,6.81180574,226.42,226.36,15.97419555]
[1759414062835,6.81180574,226.42,226.36,36.77419555]
[1759414063166,0.68,226.42,226.36,36.77419555]
[1759414063738,5.09659564,226.42,226.36,36.77419555]
[1759414064073,1.71520999,226.41,226.36,31.67647521]
[1759414064239,1.71520999,226.41,226.35,3.67006079]
[1759414064240,1.71520999,226.39,226.34,35.346536]
[1759414064439,1.71520999,226.39,226.34,25.15006079]
[1759414064636,2.39520999,226.39,226.34,24.47006079]
[1759414064834,1.71520999,226.41,226.35,0.68]
[1759414065157,0.68,226.44,226.36,10.87647521]
[1759414065351,1.71520999,226.43,226.38,10.87647521]
[1759414065546,21.48,226.48,226.39,0.68]
[1759414065860,22.07261824,226.53,226.39,0.68]
[1759414065861,1.71520999,226.51,226.4,10.87647521]
[1759414066041,4.41481612,226.51,226.43,10.87647521]
[1759414066236,4.41481612,226.51,226.44,0.68]
[1759414066470,4.41481612,226.51,226.38,24.47006079]
[1759414066471,1.71520999,226.49,226.38,24.47006079]
[1759414066648,1.71520999,226.47,226.42,10.87647521]
[1759414066854,1.71520999,226.47,226.42,11.55647521]
[1759414067061,1.71520999,226.49,226.43,0.68]
[1759414067650,16.13185642,226.51,226.43,0.68]
[1759414067855,1.71520999,226.49,226.43,0.68]
[1759414068291,4.41540091,226.48,226.43,0.68]
[1759414068451,4.41540091,226.48,226.42,15.2929884]
[1759414068452,2.39520999,226.47,226.42,10.87647521]
[1759414068652,1.71520999,226.47,226.42,10.87647521]
[1759414068858,6.1306109,226.48,226.42,11.55647521]
[1759414069083,1.71520999,226.47,226.42,11.55647521]
[1759414069784,2.39520999,226.47,226.42,11.55647521]
[1759414069954,1.71520999,226.47,226.42,11.55647521]
[1759414070153,1.71520999,226.46,226.42,10.87647521]
[1759414070377,1.71520999,226.44,226.4,10.87647521]
[1759414070546,1.71520999,226.43,226.38,10.87647521]
[1759414070748,0.68,226.46,226.39,0.68]
[1759414070749,1.71520999,226.44,226.39,0.68]
[1759414070978,1.71520999,226.44,226.4,0.68]
[1759414071961,1.71520999,226.45,226.38,15.226536]
[1759414072360,4.41618088,226.44,226.38,19.64385425]
[1759414072681,4.41618088,226.44,226.38,11.55647521]
[1759414073987,4.41618088,226.44,226.38,15.97379285]
[1759414075368,4.41618088,226.44,226.39,3.67006079]
[1759414075569,2.38520999,226.43,226.4,3.67006079]
[1759414075774,2.38520999,226.43,226.39,3.67006079]
[1759414075775,1.71520999,226.43,226.39,3.67006079]
[1759414075986,0.67,226.42,226.39,3.67006079]
[1759414076179,2.38520999,226.42,226.4,3.67006079]
[1759414076490,2.38520999,226.42,226.37,10.87647521]
[1759414076491,1.71520999,226.41,226.37,10.87647521]
[1759414077995,6.80212451,226.41,226.37,10.87647521]
[1759414078192,1.71520999,226.42,226.37,10.87647521]
[1759414078376,1.71520999,226.42,226.37,11.56647521]
[1759414078574,2.38520999,226.42,226.37,11.56647521]
[1759414078794,1.71520999,226.4,226.35,4.91128368]
[1759414079099,1.71520999,226.39,226.35,84.80128368]
[1759414079474,1.71520999,226.4,226.35,84.80128368]
[1759414079769,0.67,226.42,226.35,84.80128368]
[1759414079977,6.13222754,226.4,226.35,84.80128368]
[1759414080178,4.41701755,226.4,226.35,84.11128368]
[1759414080504,4.41701755,226.4,226.34,4.91128368]
[1759414080505,1.71520999,226.37,226.34,4.91128368]
[1759414080793,1.71520999,226.35,226.32,4.91128368]
[1759414080993,1.71520999,226.34,226.32,4.91128368]
[1759414081293,2.38520999,226.33,226.3,4.91128368]
[1759414081474,2.38520999,226.33,226.25,0.79]
[1759414081475,1.71520999,226.31,226.25,0.79]
[1759414081793,1.71520999,226.31,226.25,0.1]
[1759414081794,1.71520999,226.3,226.25,0.1]
[1759414081966,4.41910822,226.29,226.25,0.1]
[1759414082605,2.68520953,226.27,226.25,0.1]
[1759414082780,2.68520953,226.26,226.25,0.1]
[1759414082977,3.35520953,226.26,226.25,0.1]
[1759414084190,7.77490368,226.26,226.25,0.1]
[1759414086102,7.77490368,226.26,226.25,1e-08]
[1759414088216,35.17520953,226.26,226.25,1e-08]
[1759414088426,2.68520953,226.26,226.25,1e-08]
[1759414088711,4.41852244,226.32,226.25,0.69000001]
[1759414088880,2.68520953,226.31,226.25,0.69000001]
[1759414089080,31.84,226.32,226.25,0.69000001]
[1759414089081,38.94360667,226.33,226.26,10.87647521]
[1759414089387,31.84,226.33,226.25,1e-08]
[1759414089616,2.68520953,226.31,226.26,0.69]
[1759414089923,2.68520953,226.28,226.25,1e-08]
[1759414090323,6.56087656,226.28,226.25,1e-08]
[1759414090623,21.47,226.34,226.25,1e-08]
[1759414090793,20.8,226.32,226.26,0.69]
[1759414090994,27.36087656,226.32,226.26,0.69]
[1759414091322,36.25832722,226.33,226.26,0.69]
[1759414091323,6.56087656,226.33,226.26,0.69]
[1759414091623,31.84,226.32,226.26,0.69]
[1759414092123,10.97889056,226.35,226.26,0.69]
[1759414092420,42.8190922,226.34,226.27,4.41949882]
[1759414092632,42.8190922,226.34,226.26,0.69]
[1759414092633,6.56087656,226.33,226.26,0.69]
[1759414093430,6.56087656,226.32,226.25,1e-08]
[1759414093815,7.23087656,226.33,226.26,0.69]
[1759414094294,4.41852244,226.32,226.27,10.87647521]
[1759414094497,6.56087656,226.28,226.25,1e-08]
[1759414094700,6.56087656,226.26,226.25,1e-08]
[1759414095007,31.82,226.27,226.25,1e-08]
[1759414095316,38.38087656,226.27,226.25,1e-08]
[1759414095622,39.05087656,226.27,226.25,1e-08]
[1759414095818,38.38087656,226.27,226.25,1e-08]
[1759414096200,0.67,226.3,226.25,1e-08]
[1759414096405,31.82,226.29,226.25,1e-08]
[1759414096613,31.82,226.28,226.25,1e-08]
[1759414096932,31.82,226.28,226.25,0.69000001]
[1759414097307,31.82,226.28,226.25,1e-08]
[1759414097537,7.23087656,226.3,226.25,1e-08]
[1759414097727,38.38087656,226.29,226.25,1e-08]
[1759414097919,39.05087656,226.29,226.25,1e-08]
[1759414098296,0.67,226.28,226.25,1e-08]
[1759414098708,31.82,226.29,226.25,1e-08]
[1759414099230,0.67,226.31,226.25,1e-08]
[1759414099231,31.82,226.28,226.25,1e-08]
[1759414099602,0.67,226.27,226.25,1e-08]
[1759414099793,31.82,226.28,226.25,1e-08]
[1759414100209,0.67,226.27,226.25,1e-08]
[1759414100423,5.08966711,226.27,226.25,1e-08]
[1759414100629,0.67,226.26,226.25,1e-08]
[1759414101213,4.41966711,226.27,226.25,1e-08]
[1759414101821,31.82,226.26,226.25,1e-08]
[1759414102733,5.08909579,226.3,226.25,1e-08]
[1759414102903,31.82,226.29,226.25,1e-08]
[1759414103100,31.82,226.29,226.26,0.67]
[1759414103304,31.82,226.29,226.25,1e-08]
[1759414104111,0.7,226.28,226.25,1e-08]
[1759414104605,4.41930351,226.28,226.25,1e-08]
[1759414104826,5.11930351,226.28,226.25,1e-08]
[1759414105423,0.7,226.28,226.25,1e-08]
[1759414106332,31.82,226.27,226.25,1e-08]
[1759414107612,36.23953548,226.27,226.25,1e-08]
[1759414107934,7.26087656,226.26,226.25,1e-08]
[1759414108812,11.68057071,226.26,226.25,1e-08]
[1759414110312,6.56087656,226.21,226.14,11.53647521]
[1759414110518,31.82,226.2,226.14,11.53647521]
[1759414110815,10.98193849,226.19,226.13,0.2]
[1759414111315,0.7,226.18,226.13,0.2]
[1759414111520,32.52,226.17,226.13,0.2]
[1759414112043,0.7,226.16,226.13,0.2]
[1759414112247,0.7,226.15,226.13,0.2]
[1759414112413,31.82,226.14,226.13,0.2]
[1759414112941,32.52,226.14,226.13,0.2]
[1759414113146,31.82,226.14,226.13,0.2]
[1759414113319,32.52,226.14,226.13,0.2]
[1759414113850,36.94203944,226.14,226.13,0.2]
[1759414114433,11.682916,226.14,226.13,0.2]
[1759414114733,43.502916,226.14,226.13,0.2]
[1759414114907,11.682916,226.14,226.13,0.2]
[1759414115113,43.502916,226.14,226.13,0.2]
[1759414115309,36.24203944,226.14,226.13,0.2]
[1759414115624,43.502916,226.14,226.13,0.2]
[1759414116009,42.802916,226.14,226.13,0.2]
[1759414116209,43.502916,226.14,226.13,0.2]
[1759414116712,56.79026648,226.14,226.13,0.2]
[1759414117009,59.74180283,226.14,226.13,0.2]
[1759414117434,27.92180283,226.14,226.13,0.2]
[1759414117620,56.79026648,226.14,226.13,0.2]
[1759414119347,43.502916,226.14,226.13,0.2]
[1759414120751,39.08087656,226.14,226.13,0.2]
[1759414120952,4.42164839,226.16,226.13,0.2]
[1759414121155,12.182916,226.14,226.13,0.2]
[1759414121323,44.002916,226.14,226.13,0.2]
[1759414121940,7.06087656,226.14,226.13,0.2]
[1759414122144,39.58087656,226.14,226.13,0.2]
[1759414122353,44.002916,226.14,226.13,0.2]
[1759414123544,37.44203944,226.14,226.13,0.2]
[1759414123746,44.002916,226.14,226.13,0.2]
[1759414124761,46.93973438,226.14,226.13,0.2]
[1759414125930,46.93973438,226.14,226.12,0.1]
[1759414126132,2.93681838,226.13,226.12,1e-08]
[1759414126557,3.63681838,226.13,226.12,1e-08]
[1759414126959,5.94648611,226.13,226.12,1e-08]
[1759414127462,10.3687211,226.13,226.12,1e-08]
[1759414128242,45.81277928,226.13,226.12,1e-08]
[1759414128558,16.22959766,226.13,226.12,1e-08]
[1759414128860,42.80311155,226.13,226.12,1e-08]
[1759414129065,42.80311155,226.13,226.09,0.66]
[1759414129234,31.82,226.12,226.1,0.66]
[1759414129557,4.42262615,226.11,226.1,0.66]
[1759414129743,42.80350271,226.11,226.05,0.76]
[1759414129944,31.82,226.11,226.05,0.76]
[1759414130137,31.82,226.11,226.05,5.18373385]
[1759414130329,6.56087656,226.1,226.06,0.66]
[1759414130534,31.82,226.09,226.06,0.66]
[1759414130758,31.82,226.08,226.06,0.66]
[1759414131839,31.82,226.08,226.06,5.08349981]
[1759414132037,4.92217141,226.14,226.07,11.53647521]
[1759414132038,0.5,226.14,226.07,11.53647521]
[1759414132259,31.82,226.13,226.08,0.66]
[1759414132662,4.92207134,226.14,226.08,0.66]
[1759414132663,0.5,226.14,226.09,10.87647521]
[1759414132865,31.8,226.13,226.1,0.66]
[1759414133043,31.8,226.13,226.11,0.66]
[1759414133235,31.8,226.13,226.09,10.87647521]
[1759414133236,31.8,226.13,226.12,0.66]
[1759414133743,31.8,226.13,226.1,0.66]
[1759414134162,31.8,226.13,226.11,0.71]
[1759414134472,31.8,226.13,226.05,0.1]
[1759414134473,0.7,226.12,226.05,0.81]
[1759414134633,2.68908827,226.1,226.05,0.81]
[1759414134835,2.68908827,226.1,226.06,0.71]
[1759414135167,2.68908827,226.1,226.07,0.71]
[1759414135362,31.8,226.11,226.07,0.71]
[1759414135575,31.8,226.11,226.08,0.71]
[1759414135878,31.8,226.11,226.09,0.71]
[1759414136038,2.68908827,226.12,226.05,11.15929012]
[1759414136243,11.05428962,226.16,226.05,11.15929012]
[1759414136244,2.68908827,226.14,226.07,10.87647521]
[1759414136441,31.8,226.13,226.09,10.87647521]
[1759414136673,23.48908827,226.16,226.11,10.87647521]
[1759414136674,2.68908827,226.16,226.11,10.87647521]
[1759414136859,2.68908827,226.18,226.12,0.71]
[1759414137057,31.8,226.17,226.13,10.87647521]
[1759414137243,31.8,226.17,226.14,0.71]
[1759414137633,31.8,226.17,226.15,0.71]
[1759414137963,31.8,226.17,226.12,0.71]
[1759414137964,2.68908827,226.16,226.12,0.71]
[1759414138140,34.48908827,226.17,226.13,0.71]
[1759414138344,31.8,226.17,226.14,0.71]
[1759414138569,38.91059196,226.17,226.14,0.71]
[1759414138776,31.8,226.17,226.11,10.87647521]
[1759414139066,31.8,226.16,226.15,0.71]
[1759414139262,31.8,226.16,226.12,0.71]
[1759414139841,31.8,226.16,226.13,0.71]
[1759414140237,31.8,226.16,226.11,10.87647521]
[1759414140443,31.8,226.16,226.11,11.58647521]
[1759414140640,31.8,226.16,226.1,20.8]
[1759414140641,2.68908827,226.15,226.07,20.8]
[1759414140946,2.68908827,226.15,226.11,0.71]
[1759414141246,2.68908827,226.13,226.08,10.87647521]
[1759414141565,31.8,226.12,226.09,0.71]
[1759414141747,31.8,226.12,226.06,10.87647521]
[1759414141953,31.8,226.11,226.1,0.71]
[1759414142182,2.68908827,226.13,226.1,0.71]
[1759414142183,31.8,226.13,226.11,4.42262615]
[1759414142380,0.7,226.2,226.11,4.42262615]
[1759414142381,24.43724638,226.2,226.12,11.58647521]
[1759414142571,13.42837748,226.21,226.13,0.71]
[1759414142572,33.52052037,226.19,226.13,0.71]
[1759414143193,1.72052037,226.15,226.1,0.71]
[1759414143483,1.72052037,226.13,226.09,10.87647521]
[1759414143787,31.8,226.12,226.09,10.87647521]
[1759414144087,31.8,226.12,226.09,0.71]
[1759414144469,31.8,226.12,226.09,11.58647521]
[1759414144977,31.8,226.12,226.09,16.0094832]
[1759414145166,31.8,226.12,226.09,5.13300799]
[1759414145360,31.8,226.12,226.1,0.71]
[1759414145578,20.8,226.2,226.09,4.42300799]
[1759414145787,31.8,226.19,226.11,11.58647521]
[1759414145963,31.8,226.19,226.12,0.71]
[1759414146486,31.8,226.19,226.13,4.42223499]
[1759414146659,1.72052037,226.23,226.14,11.58647521]
[1759414146859,6.88208148,226.32,226.13,4.42223499]
[1759414146860,0.7,226.26,226.16,10.87647521]
[1759414147074,31.78,226.25,226.17,0.71]
[1759414147592,33.50052037,226.25,226.17,0.71]
[1759414147801,31.78,226.25,226.17,0.71]
[1759414148093,1.72052037,226.24,226.18,10.87647521]
[1759414148271,1.72052037,226.23,226.14,10.87647521]
[1759414148471,6.14099601,226.22,226.14,16.00849628]
[1759414148674,1.72052037,226.19,226.14,5.13202107]
[1759414148883,32.48,226.21,226.15,10.87647521]
[1759414149194,1.72052037,226.2,226.15,10.87647521]
[1759414149585,31.78,226.21,226.16,0.71]
[1759414149775,31.78,226.21,226.15,10.87647521]
[1759414149776,33.50052037,226.21,226.17,0.71]
[1759414149976,1.72052037,226.2,226.15,11.58647521]
[1759414150380,36.20069601,226.21,226.15,16.00821882]
[1759414150566,33.50052037,226.21,226.15,16.00821882]
[1759414150967,37.92127531,226.21,226.15,16.00821882]
[1759414151386,37.92127531,226.21,226.15,10.87647521]
[1759414151683,37.92127531,226.21,226.12,21.51]
[1759414151684,1.72052037,226.18,226.12,21.51]
[1759414151893,1.72052037,226.16,226.12,79.2]
[1759414152109,1.72052037,226.15,226.12,79.2]
[1759414153270,1.72052037,226.16,226.12,79.2]
[1759414153589,31.78,226.17,226.13,0.71]
[1759414153968,31.78,226.17,226.12,83.62232284]
[1759414154384,38.62204923,226.17,226.12,79.2]
[1759414154768,1.72052037,226.14,226.12,79.2]
[1759414154967,2.42052037,226.14,226.12,79.2]
[1759414155491,36.20146976,226.17,226.12,79.91]
[1759414155492,31.78,226.17,226.12,79.91]
[1759414155674,33.50052037,226.17,226.13,0.71]
[1759414155996,31.78,226.18,226.14,0.71]
[1759414156398,34.20052037,226.18,226.13,10.87647521]
[1759414156602,1.72052037,226.17,226.13,10.87647521]
[1759414157194,1.72052037,226.17,226.12,83.62240267]
[1759414157195,4.4218439,226.15,226.12,79.2]
[1759414157400,5.1218439,226.15,226.12,79.2]
[1759414157601,6.84236427,226.15,226.12,79.2]
[1759414157967,34.20052037,226.14,226.1,79.2]
[1759414158398,1.72052037,226.12,226.07,10.87647521]
[1759414158598,1.72052037,226.12,226.07,0.71]
[1759414158796,1.72052037,226.12,226.07,11.58647521]
[1759414159274,6.14334213,226.1,226.05,0.1]
[1759414159477,31.78,226.09,226.05,0.1]
[1759414159775,31.78,226.09,226.05,0.81]
[1759414159990,31.78,226.09,226.05,0.1]
[1759414160388,31.78,226.09,226.06,0.71]
[1759414162283,31.78,226.09,226.05,0.1]
[1759414162802,31.78,226.09,226.05,0.81]
[1759414162972,31.78,226.09,226.05,0.1]
[1759414162973,0.7,226.08,226.05,0.1]
[1759414163370,36.20307743,226.09,226.05,0.1]
[1759414163786,36.23887918,226.09,226.05,0.1]
[1759414164099,0.71,226.08,226.05,0.1]
[1759414164574,0.71,226.07,226.05,0.1]